[Event "Esbjerg Efterår 2021 - Esbjergmesterskabet"]
[Site "Esbjerg, Denmark"]
[Date "2021.10.24"]
[Round "7.1"]
[White "Pedersen, Nicolai Vesterbæk"]
[Black "Jarlnæs, Erik"]
[Result "1-0"]
[TimeControl "1.-3. 20 min + 5 sek, 4.-7. 90 min + 30 sek"]
[WhiteElo "2343"]
[BlackElo "1952"]

1. c4 {[%clk 01:30:57]} {[%emt 00:00:02]} e5 {[%clk 01:30:08]} {[%emt
00:00:52]} 2. Nc3 {[%clk 01:31:14]} {[%emt 00:00:14]} Nf6 {[%clk 01:28:50]}
{[%emt 00:01:47]} 3. Nf3 {[%clk 01:30:30]} {[%emt 00:01:14]} d6 {[%clk
01:28:31]} {[%emt 00:00:49]} 4. d4 {[%clk 01:27:17]} {[%emt 00:03:43]} exd4
{[%clk 01:24:44]} {[%emt 00:04:17]} 5. Nxd4 {[%clk 01:27:28]} {[%emt 00:00:20]}
Be7 {[%clk 01:16:47]} {[%emt 00:08:26]} 6. e4 {[%clk 01:27:24]} {[%emt
00:00:34]} Bd7 {[%clk 01:12:35]} {[%emt 00:04:43]} 7. g3 {[%clk 01:18:55]}
{[%emt 00:08:58]} Nc6 {[%clk 01:12:22]} {[%emt 00:00:44]} 8. Bg2 {[%clk
01:15:37]} {[%emt 00:03:47]} O-O {[%clk 01:10:18]} {[%emt 00:02:33]} 9. O-O
{[%clk 01:15:51]} {[%emt 00:00:17]} Nxd4 {[%clk 01:05:26]} {[%emt 00:05:22]} 10.
Qxd4 {[%clk 01:16:18]} {[%emt 00:00:03]} Bc6 {[%clk 01:05:55]} {[%emt
00:00:02]} 11. b4 {[%clk 01:12:22]} {[%emt 00:04:26]} Ng4 {[%clk 01:02:59]}
{[%emt 00:03:26]} 12. Nd5 {[%clk 01:09:22]} {[%emt 00:03:30]} Bf6 {[%clk
00:50:46]} {[%emt 00:12:43]} 13. Nxf6+ {[%clk 01:09:41]} {[%emt 00:00:11]} Qxf6
{[%clk 00:50:54]} {[%emt 00:00:22]} 14. Bb2 {[%clk 01:09:26]} {[%emt 00:00:45]}
Qxd4 {[%clk 00:51:05]} {[%emt 00:00:20]} 15. Bxd4 {[%clk 01:09:53]} {[%emt
00:00:02]} Rfe8 {[%clk 00:49:48]} {[%emt 00:01:46]} 16. a4 {[%clk 00:59:56]}
{[%emt 00:10:28]} Ne5 {[%clk 00:44:48]} {[%emt 00:05:30]} 17. b5 {[%clk
00:53:36]} {[%emt 00:06:51]} Bd7 {[%clk 00:44:34]} {[%emt 00:00:44]} 18. f4
{[%clk 00:53:30]} {[%emt 00:00:36]} Nxc4 {[%clk 00:42:42]} {[%emt 00:02:21]} 19.
Rfc1 {[%clk 00:51:02]} {[%emt 00:02:57]} Nd2 {[%clk 00:38:33]} {[%emt
00:04:40]} 20. Rxc7 {[%clk 00:51:17]} {[%emt 00:00:15]} Bg4 {[%clk 00:39:01]}
{[%emt 00:00:03]} 21. Re1 {[%clk 00:43:37]} {[%emt 00:08:08]} Nf3+ {[%clk
00:37:19]} {[%emt 00:02:13]} 22. Bxf3 {[%clk 00:43:56]} {[%emt 00:00:11]} Bxf3
{[%clk 00:37:42]} {[%emt 00:00:07]} 23. Rxb7 {[%clk 00:43:40]} {[%emt
00:00:46]} a6 {[%clk 00:32:36]} {[%emt 00:05:36]} 24. b6 {[%clk 00:42:24]}
{[%emt 00:01:46]} Rac8 {[%clk 00:27:43]} {[%emt 00:05:23]} 25. Rc7 {[%clk
00:40:30]} {[%emt 00:02:24]} Kf8 {[%clk 00:25:26]} {[%emt 00:02:47]} 26. Rxc8
{[%clk 00:39:11]} {[%emt 00:01:49]} Rxc8 {[%clk 00:25:49]} {[%emt 00:00:08]} 27.
b7 {[%clk 00:39:27]} {[%emt 00:00:14]} Rb8 {[%clk 00:26:05]} {[%emt 00:00:13]}
28. Kf2 {[%clk 00:39:46]} {[%emt 00:00:10]} Rxb7 {[%clk 00:22:29]} {[%emt
00:04:06]} 29. Kxf3 {[%clk 00:40:10]} {[%emt 00:00:07]} Rb4 {[%clk 00:22:54]}
{[%emt 00:00:05]} 30. Rd1 {[%clk 00:40:32]} {[%emt 00:00:08]} Rxa4 {[%clk
00:23:15]} {[%emt 00:00:09]} 31. Bb6 {[%clk 00:40:57]} {[%emt 00:00:05]} Ke7
{[%clk 00:23:08]} {[%emt 00:00:37]} 32. Bc7 {[%clk 00:41:20]} {[%emt 00:00:07]}
Ra2 {[%clk 00:21:20]} {[%emt 00:02:18]} 33. Bxd6+ {[%clk 00:41:31]} {[%emt
00:00:19]} Ke8 {[%clk 00:21:15]} {[%emt 00:00:35]} 34. h4 {[%clk 00:41:46]}
{[%emt 00:00:15]} a5 {[%clk 00:21:38]} {[%emt 00:00:07]} 35. Rd3 {[%clk
00:42:05]} {[%emt 00:00:11]} 1-0

[Event "Esbjerg Efterår 2021 - Esbjergmesterskabet"]
[Site "Esbjerg, Denmark"]
[Date "2021.10.24"]
[Round "7.2"]
[White "Rødgaard, John"]
[Black "Husum, Lars"]
[Result "1-0"]
[TimeControl "1.-3. 20 min + 5 sek, 4.-7. 90 min + 30 sek"]
[WhiteElo "2319"]
[BlackElo "1876"]

1. Nf3 {[%clk 01:29:44]} {[%emt 00:01:15]} d5 {[%clk 01:30:23]} {[%emt
00:00:38]} 2. d4 {[%clk 01:29:48]} {[%emt 00:00:25]} Bf5 {[%clk 01:30:40]}
{[%emt 00:00:14]} 3. c4 {[%clk 01:25:06]} {[%emt 00:05:11]} e6 {[%clk
01:28:50]} {[%emt 00:02:22]} 4. Nc3 {[%clk 01:20:39]} {[%emt 00:04:56]} c6
{[%clk 01:28:59]} {[%emt 00:00:21]} 5. Qb3 {[%clk 01:15:55]} {[%emt 00:05:13]}
Na6 {[%clk 01:23:59]} {[%emt 00:05:32]} 6. c5 {[%clk 00:54:17]} {[%emt
00:22:07]} b5 {[%clk 01:19:02]} {[%emt 00:05:27]} 7. Bf4 {[%clk 00:47:57]}
{[%emt 00:06:50]} f6 {[%clk 01:07:54]} {[%emt 00:11:39]} 8. e3 {[%clk
00:37:35]} {[%emt 00:10:50]} Qa5 {[%clk 00:49:02]} {[%emt 00:19:24]} 9. Be2
{[%clk 00:19:54]} {[%emt 00:18:10]} Ne7 {[%clk 00:38:50]} {[%emt 00:10:42]} 10.
O-O {[%clk 00:18:06]} {[%emt 00:02:18]} Ng6 {[%clk 00:38:42]} {[%emt 00:00:38]}
11. Bg3 {[%clk 00:17:48]} {[%emt 00:00:47]} Be7 {[%clk 00:33:14]} {[%emt
00:05:59]} 12. Nxb5 {[%clk 00:14:54]} {[%emt 00:03:24]} cxb5 {[%clk 00:32:24]}
{[%emt 00:01:19]} 13. Qxb5+ {[%clk 00:15:11]} {[%emt 00:00:13]} Qxb5 {[%clk
00:32:36]} {[%emt 00:00:19]} 14. Bxb5+ {[%clk 00:15:37]} {[%emt 00:00:03]} Kf7
{[%clk 00:32:31]} {[%emt 00:00:36]} 15. Bxa6 {[%clk 00:16:02]} {[%emt
00:00:05]} e5 {[%clk 00:31:14]} {[%emt 00:01:47]} 16. b4 {[%clk 00:15:41]}
{[%emt 00:00:50]} Rab8 {[%clk 00:30:53]} {[%emt 00:00:53]} 17. a3 {[%clk
00:14:56]} {[%emt 00:01:14]} Ke6 {[%clk 00:24:28]} {[%emt 00:06:54]} 18. Rfc1
{[%clk 00:14:57]} {[%emt 00:00:29]} Bd8 {[%clk 00:24:32]} {[%emt 00:00:27]} 19.
Nh4 {[%clk 00:12:44]} {[%emt 00:02:43]} Nxh4 {[%clk 00:21:36]} {[%emt
00:03:25]} 20. Bxh4 {[%clk 00:13:12]} {[%emt 00:00:02]} Bc7 {[%clk 00:21:51]}
{[%emt 00:00:16]} 21. Bg3 {[%clk 00:12:31]} {[%emt 00:01:10]} g5 {[%clk
00:21:06]} {[%emt 00:01:16]} 22. f3 {[%clk 00:11:40]} {[%emt 00:01:20]} h5
{[%clk 00:20:47]} {[%emt 00:00:48]} 23. Rc3 {[%clk 00:10:43]} {[%emt 00:01:28]}
h4 {[%clk 00:20:10]} {[%emt 00:01:07]} 24. Bf2 {[%clk 00:10:37]} {[%emt
00:00:35]} g4 {[%clk 00:17:22]} {[%emt 00:03:19]} 25. fxg4 {[%clk 00:08:13]}
{[%emt 00:02:53]} Bxg4 {[%clk 00:17:15]} {[%emt 00:00:37]} 26. Bf1 {[%clk
00:07:53]} {[%emt 00:00:50]} e4 {[%clk 00:15:41]} {[%emt 00:02:05]} 27. b5
{[%clk 00:07:39]} {[%emt 00:00:44]} Rbg8 {[%clk 00:12:31]} {[%emt 00:03:40]} 28.
Rc2 {[%clk 00:06:59]} {[%emt 00:01:10]} Bf3 {[%clk 00:11:58]} {[%emt 00:01:03]}
29. Be1 {[%clk 00:06:46]} {[%emt 00:00:42]} Rg7 {[%clk 00:10:23]} {[%emt
00:02:06]} 30. a4 {[%clk 00:06:20]} {[%emt 00:00:56]} Rhg8 {[%clk 00:10:11]}
{[%emt 00:00:42]} 31. Bxh4 {[%clk 00:05:11]} {[%emt 00:01:39]} Rg4 {[%clk
00:09:34]} {[%emt 00:01:09]} 32. Bg3 {[%clk 00:04:52]} {[%emt 00:00:47]} Bxg3
{[%clk 00:08:57]} {[%emt 00:01:08]} 33. hxg3 {[%clk 00:05:07]} {[%emt
00:00:16]} Rxg3 {[%clk 00:09:08]} {[%emt 00:00:20]} 34. b6 {[%clk 00:05:19]}
{[%emt 00:00:18]} R3g7 {[%clk 00:07:32]} {[%emt 00:02:06]} 35. a5 {[%clk
00:05:14]} {[%emt 00:00:34]} axb6 {[%clk 00:05:02]} {[%emt 00:02:59]} 36. axb6
{[%clk 00:05:03]} {[%emt 00:00:42]} Rb7 {[%clk 00:04:08]} {[%emt 00:01:24]} 37.
Rb1 {[%clk 00:04:55]} {[%emt 00:00:38]} Rbb8 {[%clk 00:04:10]} {[%emt
00:00:29]} 38. c6 {[%clk 00:04:35]} {[%emt 00:00:50]} Rbc8 {[%clk 00:03:31]}
{[%emt 00:01:10]} 39. c7 {[%clk 00:03:58]} {[%emt 00:01:06]} Kd6 {[%clk
00:03:41]} {[%emt 00:00:20]} 40. Ba6 {[%clk 00:03:46]} {[%emt 00:00:41]} 1-0

[Event "Esbjerg Efterår 2021 - Esbjergmesterskabet"]
[Site "Esbjerg, Denmark"]
[Date "2021.10.24"]
[Round "7.3"]
[White "Jensen, Henrik Tranberg"]
[Black "Eriksson, Christian Altenburg"]
[Result "0-1"]
[TimeControl "1.-3. 20 min + 5 sek, 4.-7. 90 min + 30 sek"]
[WhiteElo "1960"]
[BlackElo "2135"]

1. d4 {[%clk 01:29:15]} {[%emt 00:01:45]} Nf6 {[%clk 01:30:55]} {[%emt
00:00:05]} 2. c4 {[%clk 01:29:33]} {[%emt 00:00:12]} c5 {[%clk 01:31:23]}
{[%emt 00:00:02]} 3. d5 {[%clk 01:29:23]} {[%emt 00:00:40]} b5 {[%clk
01:31:47]} {[%emt 00:00:06]} 4. Nf3 {[%clk 01:28:02]} {[%emt 00:01:50]} g6
{[%clk 01:31:42]} {[%emt 00:00:35]} 5. cxb5 {[%clk 01:27:32]} {[%emt 00:01:01]}
a6 {[%clk 01:32:02]} {[%emt 00:00:09]} 6. bxa6 {[%emt 00:00:13]} Bxa6 {[%clk
01:31:56]} {[%emt 00:00:33]} 7. Nc3 {[%clk 01:28:20]} {[%emt 00:00:01]} d6
{[%clk 01:31:57]} {[%emt 00:00:30]} 8. g3 {[%clk 01:28:19]} {[%emt 00:00:31]}
Bg7 {[%clk 01:31:55]} {[%emt 00:00:32]} 9. Bg2 {[%clk 01:28:43]} {[%emt
00:00:06]} Nbd7 {[%clk 01:30:45]} {[%emt 00:01:40]} 10. h3 {[%clk 01:29:05]}
{[%emt 00:00:08]} Nb6 {[%clk 01:28:33]} {[%emt 00:02:42]} 11. O-O {[%clk
01:26:39]} {[%emt 00:02:56]} Bc4 {[%clk 01:27:28]} {[%emt 00:01:36]} 12. Nh2
{[%clk 01:21:32]} {[%emt 00:05:37]} O-O {[%clk 01:25:56]} {[%emt 00:02:01]} 13.
Re1 {[%clk 01:21:52]} {[%emt 00:00:10]} Ne8 {[%clk 01:22:31]} {[%emt 00:03:55]}
14. e4 {[%clk 01:18:35]} {[%emt 00:03:47]} Nc7 {[%clk 01:20:48]} {[%emt
00:02:14]} 15. Ng4 {[%clk 01:17:58]} {[%emt 00:01:06]} Nb5 {[%clk 01:19:51]}
{[%emt 00:01:28]} 16. Nxb5 {[%clk 01:14:52]} {[%emt 00:03:36]} Bxb5 {[%clk
01:19:52]} {[%emt 00:00:29]} 17. Bh6 {[%clk 01:13:24]} {[%emt 00:01:57]} Bd7
{[%clk 01:14:42]} {[%emt 00:05:40]} 18. Bxg7 {[%clk 01:06:06]} {[%emt
00:07:48]} Kxg7 {[%clk 01:13:06]} {[%emt 00:02:06]} 19. Qd2 {[%clk 00:52:43]}
{[%emt 00:13:53]} Bxg4 {[%clk 01:06:46]} {[%emt 00:06:51]} 20. hxg4 {[%clk
00:53:11]} Nd7 {[%clk 01:03:01]} {[%emt 00:04:15]} 21. f4 {[%clk 00:41:21]}
{[%emt 00:12:21]} Qa5 {[%clk 00:54:42]} {[%emt 00:08:50]} 22. Qxa5 {[%clk
00:35:14]} {[%emt 00:06:36]} Ra7 {[%emt 00:00:01]} 23. Qa6 Rxa6 {[%clk
00:55:10]} 24. Bf1 {[%clk 00:23:43]} {[%emt 00:12:02]} Ra5 {[%clk 00:53:20]} 25.
a3 {[%clk 00:21:27]} {[%emt 00:05:06]} Rb8 {[%clk 00:51:25]} {[%emt 00:02:25]}
26. Rab1 {[%clk 00:17:59]} {[%emt 00:03:58]} f6 {[%clk 00:50:00]} {[%emt
00:01:54]} 27. Re3 {[%clk 00:17:13]} {[%emt 00:01:17]} Ra4 {[%clk 00:46:52]}
{[%emt 00:03:39]} 28. Kf2 {[%clk 00:16:27]} {[%emt 00:01:15]} Kf7 {[%clk
00:46:13]} {[%emt 00:01:08]} 29. Kf3 {[%clk 00:16:41]} {[%emt 00:00:16]} g5
{[%clk 00:41:01]} {[%emt 00:05:43]} 30. Rc3 {[%clk 00:16:48]} {[%emt 00:00:23]}
h6 {[%clk 00:39:26]} {[%emt 00:02:05]} 31. Be2 {[%clk 00:16:50]} {[%emt
00:00:28]} Rb7 {[%clk 00:32:52]} {[%emt 00:07:04]} 32. Bd1 {[%clk 00:10:48]}
{[%emt 00:06:32]} Rd4 {[%clk 00:31:34]} {[%emt 00:01:48]} 33. Ke3 {[%clk
00:10:47]} {[%emt 00:00:30]} Nb6 {[%clk 00:30:00]} {[%emt 00:02:05]} 34. Rbc1
{[%clk 00:09:11]} {[%emt 00:02:06]} Nd7 {[%clk 00:25:32]} {[%emt 00:04:58]} 35.
b3 {[%clk 00:08:02]} {[%emt 00:01:39]} Ra7 {[%clk 00:21:42]} {[%emt 00:04:20]}
36. b4 {[%clk 00:06:18]} {[%emt 00:02:14]} cxb4 {[%clk 00:21:14]} {[%emt
00:00:58]} 37. Rb3 {[%clk 00:04:53]} {[%emt 00:01:55]} Rxd1 {[%clk 00:16:27]}
{[%emt 00:05:17]} 38. Rxd1 {[%clk 00:05:16]} {[%emt 00:00:06]} bxa3 {[%clk
00:16:50]} {[%emt 00:00:07]} 39. Ra1 {[%clk 00:05:31]} {[%emt 00:00:15]} a2
{[%clk 00:17:15]} {[%emt 00:00:06]} 40. Rb2 {[%clk 00:05:31]} {[%emt 00:00:30]}
Ra3+ {[%clk 00:17:27]} {[%emt 00:00:18]} 41. Kf2 {[%clk 00:05:59]} {[%emt
00:00:02]} Nc5 {[%emt 00:02:13]} 42. Re2 {[%clk 00:04:32]} gxf4 {[%clk
00:17:16]} {[%emt 00:00:54]} 43. gxf4 {[%clk 00:04:31]} {[%emt 00:00:31]} Nd3+
{[%clk 00:17:18]} {[%emt 00:00:28]} 44. Kf1 {[%clk 00:03:38]} {[%emt 00:01:23]}
Nxf4 {[%clk 00:15:38]} {[%emt 00:02:10]} 45. Rf2 {[%clk 00:03:35]} {[%emt
00:00:32]} Ng6 {[%clk 00:13:50]} {[%emt 00:02:19]} 46. Raxa2 {[%clk 00:03:54]}
{[%emt 00:00:11]} Rb3 {[%clk 00:13:28]} {[%emt 00:00:52]} 47. Ke2 {[%clk
00:03:01]} {[%emt 00:01:23]} Rg3 {[%clk 00:12:57]} {[%emt 00:01:01]} 48. Rh2
{[%clk 00:02:02]} {[%emt 00:01:28]} Rxg4 {[%clk 00:13:01]} {[%emt 00:00:27]} 49.
Rxh6 {[%clk 00:01:27]} {[%emt 00:01:05]} 0-1

[Event "Esbjerg Efterår 2021 - Esbjergmesterskabet"]
[Site "Esbjerg, Denmark"]
[Date "2021.10.24"]
[Round "7.4"]
[White "Medhus, Vitus Bondo"]
[Black "Marcussen, Claus"]
[Result "1-0"]
[TimeControl "1.-3. 20 min + 5 sek, 4.-7. 90 min + 30 sek"]
[WhiteElo "1875"]
[BlackElo "1543"]

1. e4 {[%clk 01:30:59]} {[%emt 00:00:01]} d5 {[%clk 01:30:48]} {[%emt
00:00:12]} 2. exd5 {[%clk 01:31:21]} {[%emt 00:00:08]} Qxd5 {[%clk 01:31:15]}
{[%emt 00:00:02]} 3. Nc3 {[%clk 01:31:33]} {[%emt 00:00:18]} Qd8 {[%clk
01:31:43]} {[%emt 00:00:02]} 4. d4 {[%clk 01:31:42]} {[%emt 00:00:21]} g6
{[%clk 01:32:11]} {[%emt 00:00:02]} 5. Nf3 {[%clk 01:31:56]} {[%emt 00:00:17]}
Nh6 {[%clk 01:32:38]} {[%emt 00:00:03]} 6. Bf4 {[%clk 01:31:46]} {[%emt
00:00:39]} Bg7 {[%clk 01:32:53]} {[%emt 00:00:16]} 7. Qd2 {[%clk 01:32:08]}
{[%emt 00:00:08]} Nf5 {[%clk 01:33:19]} {[%emt 00:00:03]} 8. O-O-O {[%clk
01:32:26]} {[%emt 00:00:12]} Nd7 {[%clk 01:32:38]} {[%emt 00:01:12]} 9. h4
{[%clk 01:29:56]} {[%emt 00:03:00]} Nf6 {[%clk 01:31:29]} {[%emt 00:01:38]} 10.
Bd3 {[%clk 01:28:07]} {[%emt 00:02:19]} Nh5 {[%clk 01:28:20]} {[%emt 00:03:40]}
11. Bxf5 {[%clk 01:25:19]} {[%emt 00:03:17]} Nxf4 {[%clk 01:24:02]} {[%emt
00:04:49]} 12. Bxc8 {[%clk 01:23:04]} 1-0

[Event "Esbjerg Efterår 2021 - Esbjergmesterskabet"]
[Site "Esbjerg, Denmark"]
[Date "2021.10.24"]
[Round "7.5"]
[White "Bekmuhanov, Sauran"]
[Black "Pedersen, Lars Wilton"]
[Result "0-1"]
[TimeControl "1.-3. 20 min + 5 sek, 4.-7. 90 min + 30 sek"]
[WhiteElo "1623"]
[BlackElo "1991"]

1. e4 {[%clk 01:30:59]} c5 {[%clk 01:30:45]} {[%emt 00:00:15]} 2. Nf3 {[%clk
01:31:27]} {[%emt 00:00:03]} Nc6 {[%clk 01:31:04]} {[%emt 00:00:11]} 3. d4
{[%clk 01:31:52]} {[%emt 00:00:06]} cxd4 {[%clk 01:31:28]} {[%emt 00:00:05]} 4.
Nxd4 {[%clk 01:32:04]} {[%emt 00:00:18]} e6 {[%clk 01:30:24]} {[%emt 00:01:33]}
5. Nc3 {[%clk 01:32:22]} {[%emt 00:00:13]} a6 {[%clk 01:30:45]} {[%emt
00:00:10]} 6. Be3 {[%clk 01:32:18]} {[%emt 00:00:33]} Nf6 {[%clk 01:30:38]}
{[%emt 00:00:36]} 7. f3 {[%clk 01:32:35]} {[%emt 00:00:14]} d5 {[%clk
01:28:32]} {[%emt 00:02:36]} 8. exd5 {[%clk 01:32:06]} {[%emt 00:00:59]} Nxd5
{[%clk 01:28:52]} {[%emt 00:00:10]} 9. Nxd5 {[%clk 01:30:16]} {[%emt 00:02:19]}
Qxd5 {[%clk 01:29:02]} {[%emt 00:00:21]} 10. Nxc6 {[%clk 01:30:27]} {[%emt
00:00:18]} Qxc6 {[%clk 01:29:07]} {[%emt 00:00:26]} 11. Qd2 {[%clk 01:30:34]}
{[%emt 00:00:19]} Be7 {[%clk 01:28:54]} {[%emt 00:00:45]} 12. O-O-O {[%clk
01:30:35]} {[%emt 00:00:30]} O-O {[%clk 01:29:04]} {[%emt 00:00:20]} 13. Bd3
{[%clk 01:30:04]} {[%emt 00:01:00]} f5 {[%clk 01:25:07]} {[%emt 00:04:27]} 14.
Rhe1 {[%clk 01:27:56]} {[%emt 00:02:38]} e5 {[%clk 01:24:47]} {[%emt 00:00:51]}
15. Bf2 {[%clk 01:27:06]} {[%emt 00:01:20]} Bf6 {[%clk 01:24:37]} {[%emt
00:00:41]} 16. Qb4 {[%clk 01:26:32]} {[%emt 00:01:03]} Be6 {[%clk 01:24:31]}
{[%emt 00:00:36]} 17. a3 {[%clk 01:23:19]} {[%emt 00:03:43]} Rfc8 {[%clk
01:19:51]} {[%emt 00:05:10]} 18. Qb6 {[%clk 01:21:45]} {[%emt 00:02:04]} Qxb6
{[%clk 01:15:35]} {[%emt 00:04:46]} 19. Bxb6 {[%clk 01:22:01]} {[%emt
00:00:14]} Rc6 {[%clk 01:15:49]} {[%emt 00:00:16]} 20. Ba5 {[%clk 01:18:23]}
{[%emt 00:04:08]} Rac8 {[%clk 01:12:34]} {[%emt 00:03:45]} 21. Bc3 {[%clk
01:15:18]} {[%emt 00:03:35]} Rxc3 {[%clk 01:06:31]} {[%emt 00:06:33]} 22. bxc3
{[%clk 01:14:29]} {[%emt 00:01:19]} Rxc3 {[%clk 01:06:59]} {[%emt 00:00:02]} 23.
Kd2 {[%clk 01:13:58]} {[%emt 00:01:00]} Rxa3 {[%clk 01:06:23]} {[%emt
00:01:06]} 24. Rb1 {[%clk 01:11:46]} {[%emt 00:02:43]} b5 {[%clk 01:06:37]}
{[%emt 00:00:16]} 25. Ra1 {[%clk 01:12:00]} {[%emt 00:00:15]} b4 {[%clk
00:59:20]} {[%emt 00:07:47]} 26. Bxa6 {[%clk 01:10:40]} {[%emt 00:01:49]} Bg5+
{[%clk 00:56:00]} {[%emt 00:03:50]} 27. Ke2 {[%clk 01:08:55]} {[%emt 00:02:11]}
Rxa6 {[%emt 00:01:59]} 28. Rxa6 {[%clk 01:08:03]} Bc4+ {[%clk 00:56:23]} {[%emt
00:00:05]} 29. Kf2 {[%clk 01:08:16]} {[%emt 00:00:15]} Bxa6 {[%clk 00:56:49]}
{[%emt 00:00:06]} 30. Rxe5 {[%clk 01:07:38]} {[%emt 00:01:07]} g6 {[%clk
00:56:47]} {[%emt 00:00:31]} 31. Ra5 {[%clk 01:07:34]} {[%emt 00:00:34]} Bc4
{[%clk 00:55:10]} {[%emt 00:02:07]} 32. Rc5 {[%clk 01:07:09]} {[%emt 00:00:56]}
Bf7 {[%clk 00:54:21]} {[%emt 00:01:18]} 33. Rb5 {[%clk 01:06:56]} {[%emt
00:00:43]} Be7 {[%clk 00:53:04]} {[%emt 00:01:47]} 34. Ke3 {[%clk 01:05:39]}
{[%emt 00:01:44]} Bc4 {[%clk 00:52:29]} {[%emt 00:01:06]} 35. Rb7 {[%clk
01:03:40]} {[%emt 00:02:31]} Kf7 {[%clk 00:52:12]} {[%emt 00:00:47]} 36. Kd4
{[%clk 01:03:46]} {[%emt 00:00:23]} Bf1 {[%clk 00:48:04]} {[%emt 00:04:39]} 37.
g3 {[%clk 01:03:59]} {[%emt 00:00:17]} h6 {[%clk 00:45:39]} {[%emt 00:02:55]}
38. f4 {[%clk 01:03:52]} {[%emt 00:00:38]} Bg2 {[%clk 00:44:17]} {[%emt
00:01:51]} 39. Ra7 {[%clk 01:04:04]} {[%emt 00:00:18]} Be4 {[%clk 00:42:24]}
{[%emt 00:02:23]} 40. c4 {[%clk 01:03:49]} {[%emt 00:00:45]} g5 {[%clk
00:28:51]} {[%emt 00:14:03]} 41. Ra6 {[%clk 00:56:25]} {[%emt 00:07:53]} Bf6+
{[%clk 00:28:34]} {[%emt 00:00:49]} 42. Kc5 {[%clk 00:55:17]} {[%emt 00:01:38]}
b3 {[%clk 00:28:45]} {[%emt 00:00:18]} 43. fxg5 {[%clk 00:53:23]} {[%emt
00:02:24]} hxg5 {[%clk 00:29:10]} {[%emt 00:00:06]} 44. Rb6 {[%clk 00:44:52]}
{[%emt 00:09:02]} b2 {[%clk 00:29:28]} {[%emt 00:00:11]} 0-1